bitfinex/quotes_SOLUSD_20250102
["timestamp","ask_amount","ask_price","bid_price","bid_amount"]
[1735838497349,13.91119658,207.91,207.85,23.776884]
[1735838497548,13.91119658,207.91,207.83,13.91119658]
[1735838499143,13.91119658,207.9,207.83,13.91119658]
[1735838499356,13.91119658,207.88,207.8,13.91119658]
[1735838499560,13.91119658,207.88,207.81,13.91119658]
[1735838500367,13.91119658,207.87,207.82,23.776884]
[1735838500665,13.91119658,207.87,207.81,23.776884]
[1735838501865,13.91119658,207.88,207.81,13.91119658]
[1735838502864,13.91119658,207.87,207.81,23.776884]
[1735838503539,13.91119658,207.86,207.81,23.776884]
[1735838503939,0.12549,207.87,207.81,23.776884]
[1735838504150,13.91119658,207.88,207.81,23.776884]
[1735838506263,13.91119658,207.88,207.81,13.91119658]
[1735838507859,0.12549,207.88,207.81,13.91119658]
[1735838508977,14.03668658,207.88,207.81,13.91119658]
[1735838509145,13.91119658,207.86,207.79,13.91119658]
[1735838509468,14.03668658,207.83,207.76,13.91119658]
[1735838509669,14.03668658,207.83,207.75,13.91119658]
[1735838509670,0.12549,207.81,207.75,13.91119658]
[1735838509882,0.12549,207.81,207.74,13.91119658]
[1735838510165,14.03668658,207.81,207.75,23.776884]
[1735838510955,0.12549,207.79,207.72,13.91119658]
[1735838511251,14.03668658,207.77,207.7,13.91119658]
[1735838511459,14.03668658,207.77,207.71,23.776884]
[1735838511659,13.91119658,207.76,207.71,23.776884]
[1735838511862,0.12549,207.76,207.7,13.91119658]
[1735838513065,13.91119658,207.76,207.71,23.776884]
[1735838513858,0.12549,207.76,207.71,23.776884]
[1735838515572,14.03668658,207.77,207.71,23.776884]
[1735838515972,13.91119658,207.76,207.7,23.776884]
[1735838516147,0.12549,207.71,207.65,13.91119658]
[1735838516354,14.03668658,207.71,207.63,13.91119658]
[1735838516556,13.91119658,207.7,207.64,23.776884]
[1735838517178,13.91119658,207.68,207.61,13.91119658]
[1735838517875,13.91119658,207.67,207.6,13.91119658]
[1735838519361,13.91119658,207.67,207.61,23.776884]
[1735838519567,13.91119658,207.66,207.61,23.776884]
[1735838519764,13.91119658,207.65,207.6,23.776884]
[1735838520073,13.91119658,207.65,207.55,30.0]
[1735838520074,13.91119658,207.64,207.57,13.91119658]
[1735838520483,0.12549,207.69,207.63,23.776884]
[1735838520484,14.03668658,207.69,207.63,23.776884]
[1735838520665,13.91119658,207.72,207.65,37.68808058]
[1735838520863,13.91119658,207.73,207.67,23.776884]
[1735838521455,13.91119658,207.75,207.69,23.776884]
[1735838522380,13.91119658,207.76,207.69,13.91119658]
[1735838523564,13.91119658,207.78,207.71,37.68808058]
[1735838523778,13.91119658,207.79,207.71,37.68808058]
[1735838523989,13.91119658,207.79,207.73,23.776884]
[1735838524672,13.91119658,207.78,207.71,13.91119658]
[1735838525185,13.91119658,207.78,207.71,43.776884]
[1735838525565,13.91119658,207.78,207.71,57.68808058]
[1735838526263,13.91119658,207.78,207.71,37.68808058]
[1735838526688,13.91119658,207.74,207.67,13.91119658]
[1735838526869,13.91119658,207.72,207.65,13.91119658]
[1735838527185,13.91119658,207.71,207.65,23.776884]
[1735838527368,13.91119658,207.73,207.67,23.776884]
[1735838527568,0.37647,207.77,207.65,23.776884]
[1735838527770,13.91119658,207.72,207.65,37.68808058]
[1735838528388,13.91119658,207.73,207.65,37.68808058]
[1735838528777,13.91119658,207.72,207.65,37.68808058]
[1735838530589,13.91119658,207.72,207.65,23.776884]
[1735838530798,13.91119658,207.71,207.65,23.776884]
[1735838532480,13.91119658,207.71,207.64,23.776884]
[1735838533192,13.91119658,207.7,207.64,23.776884]
[1735838534493,13.91119658,207.71,207.64,13.91119658]
[1735838535295,13.91119658,207.7,207.64,23.776884]
[1735838535872,13.91119658,207.69,207.62,37.68808058]
[1735838537474,13.91119658,207.7,207.64,23.776884]
[1735838537673,13.91119658,207.68,207.61,20.04239658]
[1735838537881,13.91119658,207.68,207.62,23.776884]
[1735838538095,13.91119658,207.66,207.62,23.776884]
[1735838538393,13.91119658,207.65,207.58,1.5229]
[1735838538574,13.91119658,207.65,207.57,13.91119658]
[1735838539085,13.91119658,207.64,207.57,13.91119658]
[1735838539282,13.91119658,207.62,207.56,6.3086]
[1735838539685,14.03668658,207.63,207.57,23.776884]
[1735838540399,14.03668658,207.63,207.56,20.21979658]
[1735838541800,14.03668658,207.63,207.57,23.776884]
[1735838541976,13.91119658,207.61,207.57,23.776884]
[1735838542178,13.91119658,207.61,207.55,23.776884]
[1735838542595,13.91119658,207.59,207.52,13.91119658]
[1735838542784,13.91119658,207.57,207.5,13.91119658]
[1735838543085,13.91119658,207.56,207.51,23.776884]
[1735838543673,13.91119658,207.57,207.51,23.776884]
[1735838544202,13.91119658,207.56,207.51,23.776884]
[1735838544499,13.91119658,207.57,207.51,23.776884]
[1735838545105,13.91119658,207.57,207.51,13.91119658]
[1735838545310,13.91119658,207.54,207.48,8.2244]
[1735838545479,13.91119658,207.53,207.49,20.0]
[1735838545680,13.91119658,207.53,207.5,23.776884]
[1735838545879,13.91119658,207.56,207.5,37.68808058]
[1735838546182,13.91119658,207.57,207.51,13.91119658]
[1735838546382,13.91119658,207.57,207.5,37.68808058]
[1735838547416,13.91119658,207.57,207.51,13.91119658]
[1735838547806,13.91119658,207.58,207.51,13.91119658]
[1735838547985,13.91119658,207.57,207.5,37.68808058]
[1735838549623,13.91119658,207.56,207.5,13.91119658]
[1735838549993,13.91119658,207.53,207.47,13.91119658]
[1735838550188,13.91119658,207.54,207.48,13.91119658]
[1735838550409,13.91119658,207.55,207.48,13.91119658]
[1735838551026,13.91119658,207.55,207.49,23.776884]
[1735838551587,13.91119658,207.55,207.49,13.91119658]
[1735838552014,13.91119658,207.56,207.49,13.91119658]
[1735838552421,13.91119658,207.55,207.49,13.91119658]
[1735838552716,13.91119658,207.55,207.49,23.776884]
[1735838553510,13.91119658,207.55,207.46,20.0]
[1735838553511,13.91119658,207.57,207.52,23.776884]
[1735838553714,13.91119658,207.59,207.52,13.91119658]
[1735838554020,13.91119658,207.58,207.52,23.776884]
[1735838555329,13.91119658,207.57,207.52,23.776884]
[1735838555507,13.91119658,207.57,207.51,23.776884]
[1735838555709,13.91119658,207.58,207.51,37.68808058]
[1735838556702,13.91119658,207.58,207.52,13.91119658]
[1735838557529,13.91119658,207.57,207.5,13.91119658]
[1735838557901,13.91119658,207.58,207.51,13.91119658]
[1735838558435,13.91119658,207.57,207.51,13.91119658]
[1735838558732,0.12549,207.58,207.52,13.91119658]
[1735838559100,13.91119658,207.59,207.54,23.776884]
[1735838559297,13.91119658,207.6,207.54,23.776884]
[1735838559515,1.5287,207.7,207.6,23.776884]
[1735838559723,13.91119658,207.72,207.66,23.776884]
[1735838560135,14.28766658,207.71,207.64,13.91119658]
[1735838560292,13.91119658,207.71,207.65,13.91119658]
[1735838560496,13.91119658,207.72,207.66,23.776884]
[1735838561207,0.12549,207.71,207.66,13.91119658]
[1735838561428,0.12549,207.71,207.67,23.776884]
[1735838561632,13.91119658,207.73,207.67,23.776884]
[1735838561934,13.91119658,207.78,207.71,13.91119658]
[1735838562228,13.91119658,207.79,207.73,23.776884]
[1735838562802,0.12549,207.76,207.71,23.776884]
[1735838563305,13.91119658,207.77,207.71,23.776884]
[1735838563697,0.25098,207.77,207.71,13.91119658]
[1735838564599,0.37647,207.77,207.71,13.91119658]
[1735838564997,14.28766658,207.77,207.71,23.776884]
[1735838565202,14.28766658,207.75,207.71,23.776884]
[1735838565503,13.91119658,207.74,207.68,23.776884]
[1735838566423,0.12549,207.73,207.67,13.91119658]
[1735838566604,0.12549,207.73,207.68,23.776884]
[1735838569718,20.0,207.75,207.65,13.91119658]
[1735838569719,0.12549,207.71,207.65,13.91119658]
[1735838570121,0.12549,207.71,207.66,23.776884]
[1735838570538,0.12549,207.71,207.65,13.91119658]
[1735838571036,0.12549,207.71,207.66,23.776884]
[1735838571741,14.03668658,207.71,207.65,23.776884]
[1735838572038,14.03668658,207.69,207.62,13.91119658]
[1735838572839,14.03668658,207.69,207.63,37.68808058]
[1735838572840,0.12549,207.69,207.63,37.68808058]
[1735838573040,13.91119658,207.72,207.65,13.91119658]
[1735838573915,0.37647,207.71,207.65,13.91119658]
[1735838575442,33.91119658,207.73,207.67,23.776884]
[1735838575641,13.91119658,207.75,207.69,23.776884]
[1735838576143,1.90876737,207.79,207.71,23.776884]
[1735838576144,0.12549,207.74,207.71,23.776884]
[1735838576516,13.91119658,207.78,207.71,23.776884]
[1735838577548,13.91119658,207.8,207.73,23.776884]
[1735838577924,0.37647,207.79,207.73,23.776884]
[1735838578132,0.12549,207.79,207.73,23.776884]
[1735838578345,20.0,207.78,207.73,23.776884]
[1735838578639,13.91119658,207.8,207.73,13.91119658]
[1735838578848,0.12549,207.8,207.73,13.91119658]
[1735838579052,20.0,207.79,207.75,23.776884]
[1735838579342,20.0,207.79,207.73,13.91119658]
[1735838579721,13.91119658,207.79,207.73,23.776884]
[1735838580044,14.03668658,207.78,207.71,13.91119658]
[1735838580346,13.91119658,207.75,207.68,13.91119658]
[1735838580549,33.91119658,207.77,207.69,13.91119658]
[1735838580859,1.6293,207.81,207.72,23.776884]
[1735838580860,0.12549,207.76,207.72,23.776884]
[1735838581222,0.37647,207.77,207.72,23.776884]
[1735838582647,14.28766658,207.77,207.71,23.776884]
[1735838583049,0.37647,207.77,207.71,13.91119658]
[1735838583424,14.16217658,207.77,207.71,23.776884]
[1735838583945,12.0318,207.79,207.72,13.91119658]
[1735838584135,15.54049658,207.81,207.74,13.91119658]
[1735838584745,15.54049658,207.81,207.75,23.776884]
[1735838584963,20.0,207.79,207.75,13.91119658]
[1735838585122,13.91119658,207.84,207.77,13.91119658]
[1735838585521,0.25098,207.83,207.77,23.776884]
[1735838586536,0.12549,207.82,207.76,23.776884]
[1735838586938,14.03668658,207.82,207.76,23.776884]
[1735838587445,0.12549,207.82,207.76,23.776884]
[1735838587646,0.12549,207.82,207.76,37.68808058]
[1735838587949,13.91119658,207.83,207.76,37.68808058]
[1735838588374,13.91119658,207.83,207.76,23.776884]
[1735838589347,13.91119658,207.81,207.74,13.91119658]
[1735838589653,0.12549,207.82,207.76,13.91119658]
[1735838589950,13.91119658,207.82,207.76,23.776884]
[1735838590633,0.37647,207.82,207.76,13.91119658]
[1735838590932,14.28766658,207.82,207.75,13.91119658]
[1735838591138,0.12549,207.8,207.75,23.776884]
[1735838591549,14.03668658,207.8,207.74,23.776884]
[1735838591721,0.12549,207.78,207.74,23.776884]
[1735838591925,0.12549,207.76,207.7,13.91119658]
[1735838592126,13.91119658,207.76,207.69,13.91119658]
[1735838592327,0.12549,207.76,207.7,23.776884]
[1735838592756,0.12549,207.76,207.69,13.91119658]
[1735838593534,13.91119658,207.78,207.72,23.776884]
[1735838593843,20.0,207.79,207.74,23.776884]
[1735838594040,0.12549,207.78,207.72,13.91119658]
[1735838595251,33.91119658,207.79,207.72,13.91119658]
[1735838595440,33.91119658,207.79,207.74,13.91119658]
[1735838595441,20.0,207.79,207.74,13.91119658]
[1735838595636,20.0,207.79,207.74,23.776884]
[1735838595859,33.91119658,207.79,207.72,13.91119658]
[1735838596051,13.91119658,207.79,207.72,13.91119658]
[1735838596552,33.91119658,207.79,207.72,23.776884]
[1735838597057,20.0,207.79,207.74,23.776884]
[1735838597427,33.91119658,207.79,207.72,13.91119658]
[1735838597630,0.12549,207.79,207.74,23.776884]
[1735838598072,14.03668658,207.79,207.72,13.91119658]
[1735838598669,13.91119658,207.8,207.74,23.776884]
[1735838599272,0.12549,207.79,207.74,23.776884]
[1735838599772,13.91119658,207.79,207.72,13.91119658]
[1735838600276,0.12549,207.78,207.72,23.776884]
[1735838600654,13.91119658,207.83,207.76,23.776884]
[1735838600858,13.91119658,207.82,207.76,23.776884]
[1735838601161,13.91119658,207.81,207.74,13.91119658]
[1735838602747,33.91119658,207.83,207.76,13.91119658]
[1735838603779,33.91119658,207.83,207.7,43.91119658]
[1735838603780,0.12549,207.82,207.75,13.91119658]
[1735838604574,0.12549,207.82,207.76,23.776884]
[1735838604783,0.12549,207.82,207.76,37.68808058]
[1735838605075,13.91119658,207.84,207.77,13.91119658]
[1735838605278,13.91119658,207.84,207.78,23.776884]
[1735838606183,18.5769,207.86,207.78,23.776884]
[1735838606184,14.03668658,207.85,207.78,23.776884]
[1735838609062,0.12549,207.83,207.78,23.776884]
[1735838609264,14.03668658,207.83,207.75,13.91119658]
[1735838609761,0.12549,207.8,207.75,13.91119658]
[1735838610173,0.12549,207.8,207.76,23.776884]
[1735838610377,0.12549,207.82,207.76,23.776884]
[1735838616574,8.90839641,207.85,207.78,23.776884]
[1735838617003,10.53859641,207.87,207.79,8.90839641]
[1735838617185,8.90839641,207.89,207.82,23.776884]
[1735838617591,20.93289641,207.91,207.84,23.776884]
[1735838617898,0.12549,207.9,207.84,8.90839641]
[1735838618088,20.93289641,207.91,207.84,8.90839641]
[1735838618599,0.12549,207.9,207.84,8.90839641]
[1735838618812,8.90839641,207.89,207.83,23.776884]
[1735838619098,0.12549,207.88,207.81,8.90839641]
[1735838619308,9.03388641,207.88,207.8,8.90839641]
[1735838619970,9.03388641,207.88,207.81,32.68528041]
[1735838620275,0.12549,207.88,207.81,32.68528041]
[1735838620993,0.12549,207.87,207.81,23.776884]
[1735838621301,9.03388641,207.87,207.81,23.776884]
[1735838621494,9.03388641,207.85,207.75,6.6276]
[1735838621682,9.03388641,207.85,207.78,8.90839641]
[1735838622086,9.03388641,207.85,207.79,23.776884]
[1735838622602,9.03388641,207.85,207.77,8.90839641]
[1735838623201,0.12549,207.83,207.77,8.90839641]
[1735838623498,0.12549,207.83,207.76,8.90839641]
[1735838623499,9.03388641,207.83,207.76,8.90839641]
[1735838623680,0.12549,207.81,207.74,8.90839641]
[1735838623999,0.12549,207.81,207.76,23.776884]
[1735838624514,0.12549,207.81,207.74,32.68528041]
[1735838624703,8.90839641,207.79,207.72,8.90839641]
[1735838625010,9.03388641,207.8,207.74,23.776884]
[1735838625397,0.12549,207.8,207.74,32.68528041]
[1735838625605,0.12549,207.8,207.74,8.90839641]
[1735838628002,0.12549,207.81,207.76,23.776884]
[1735838628211,0.12549,207.8,207.76,23.776884]
[1735838628375,0.12549,207.8,207.74,8.90839641]
[1735838628808,8.90839641,207.8,207.74,23.776884]
[1735838629814,0.12549,207.8,207.74,8.90839641]
[1735838631401,0.25098,207.8,207.73,8.90839641]
[1735838631584,0.12549,207.79,207.73,8.90839641]
[1735838631907,8.90839641,207.77,207.7,8.90839641]
[1735838632108,0.12549,207.76,207.7,8.90839641]
[1735838632471,0.12549,207.76,207.68,1.561]
[1735838632472,8.90839641,207.76,207.69,32.68528041]
[1735838633497,0.12549,207.76,207.71,23.776884]
[1735838634124,8.90839641,207.76,207.69,8.90839641]
[1735838635503,0.12549,207.76,207.71,23.776884]
[1735838637007,0.25098,207.77,207.71,23.776884]
[1735838637990,0.25098,207.77,207.66,23.776884]
[1735838638195,0.25098,207.77,207.7,8.90839641]
[1735838638596,8.90839641,207.81,207.74,8.90839641]
[1735838638794,0.25098,207.81,207.75,8.90839641]
[1735838639007,8.90839641,207.83,207.77,23.776884]
[1735838639326,9.03388641,207.82,207.77,23.776884]
[1735838639623,9.03388641,207.82,207.75,8.90839641]
[1735838640126,8.90839641,207.82,207.76,23.776884]
[1735838640798,0.12549,207.81,207.76,23.776884]
[1735838641011,8.90839641,207.79,207.72,8.90839641]
[1735838641311,8.90839641,207.78,207.71,8.90839641]
[1735838641626,8.90839641,207.79,207.73,23.776884]
[1735838641825,8.90839641,207.8,207.73,32.68528041]
[1735838642122,9.03388641,207.79,207.73,23.776884]
[1735838642615,0.12549,207.79,207.73,8.90839641]
[1735838643223,8.90839641,207.79,207.73,23.776884]
[1735838643439,8.90839641,207.81,207.73,32.68528041]
[1735838643594,8.90839641,207.81,207.73,23.776884]
[1735838643798,8.90839641,207.81,207.75,23.776884]
[1735838644121,9.03388641,207.83,207.77,23.776884]
[1735838644712,8.90839641,207.82,207.75,8.90839641]
[1735838647028,9.15937641,207.83,207.75,8.90839641]
[1735838647337,9.15937641,207.81,207.73,8.90839641]
[1735838647519,9.15937641,207.81,207.74,23.776884]
[1735838648227,0.25098,207.79,207.72,8.90839641]
[1735838648941,0.25098,207.79,207.72,23.776884]
[1735838648942,0.25098,207.78,207.72,23.776884]
[1735838649118,0.25098,207.78,207.71,8.90839641]
[1735838650421,9.15937641,207.77,207.65,0.72198673]
[1735838650622,9.15937641,207.77,207.7,8.90839641]
[1735838650821,8.90839641,207.76,207.7,23.776884]
[1735838651648,8.90839641,207.74,207.67,8.90839641]
[1735838652126,0.12549,207.73,207.67,8.90839641]
[1735838653028,9.28486641,207.75,207.68,32.68528041]
[1735838653732,9.15937641,207.75,207.68,32.68528041]
[1735838653955,0.12549,207.75,207.7,32.68528041]
[1735838654258,1.5626,207.76,207.7,32.68528041]
[1735838656034,1.5626,207.76,207.73,23.776884]
[1735838656246,6.6049,207.79,207.73,32.68528041]
[1735838656547,15.51329641,207.79,207.73,23.776884]
[1735838656730,0.12549,207.79,207.73,32.68528041]
[1735838656922,10.48609641,207.81,207.75,23.776884]
[1735838657125,8.90839641,207.83,207.77,23.776884]
[1735838657335,15.07159641,207.84,207.77,23.776884]
[1735838657548,0.12549,207.83,207.77,23.776884]
[1735838657853,8.90839641,207.82,207.75,8.90839641]
[1735838658223,13.91881358,207.82,207.75,13.91881358]
[1735838658475,14.04430358,207.83,207.77,23.776884]
[1735838659228,0.12549,207.83,207.77,13.91881358]
[1735838659647,13.91881358,207.84,207.77,13.91881358]
[1735838659858,13.91881358,207.85,207.79,23.776884]
[1735838660262,13.91881358,207.85,207.78,23.776884]
[1735838660451,13.91881358,207.84,207.78,23.776884]
[1735838660839,14.04430358,207.83,207.76,13.91881358]
[1735838661170,0.12549,207.81,207.75,13.91881358]
[1735838661342,14.04430358,207.8,207.73,13.91881358]
[1735838661664,13.91881358,207.79,207.74,23.776884]
[1735838662367,13.91881358,207.8,207.74,23.776884]
[1735838662565,13.91881358,207.78,207.72,23.776884]
[1735838663066,13.91881358,207.79,207.72,13.91881358]
[1735838663872,13.91881358,207.8,207.74,23.776884]
[1735838665864,13.91881358,207.77,207.7,13.91881358]
[1735838666162,13.91881358,207.76,207.69,13.91881358]
[1735838667066,13.91881358,207.75,207.68,13.91881358]
[1735838667367,13.91881358,207.75,207.69,23.776884]
[1735838667664,13.91881358,207.76,207.69,13.91881358]
[1735838668542,14.16979358,207.77,207.69,13.91881358]
[1735838668942,13.91881358,207.76,207.69,13.91881358]
[1735838671457,13.91881358,207.75,207.68,13.91881358]
[1735838671651,13.91881358,207.72,207.65,13.91881358]
[1735838672158,13.91881358,207.72,207.66,23.776884]
[1735838672355,13.91881358,207.71,207.66,23.776884]
[1735838672681,13.91881358,207.72,207.66,23.776884]
[1735838673139,13.91881358,207.71,207.64,13.91881358]
[1735838673343,13.91881358,207.72,207.66,23.776884]
[1735838673570,13.91881358,207.72,207.66,37.69569758]
[1735838673762,13.91881358,207.73,207.66,37.69569758]
[1735838673962,14.04430358,207.73,207.66,37.69569758]
[1735838674876,33.91881358,207.75,207.68,13.91881358]
[1735838675046,33.91881358,207.75,207.69,23.776884]
[1735838675247,13.91881358,207.74,207.69,23.776884]
[1735838676274,13.91881358,207.75,207.69,23.776884]
[1735838676668,0.12549,207.75,207.69,13.91881358]
[1735838676969,14.04430358,207.75,207.68,13.91881358]
[1735838677973,14.04430358,207.75,207.69,23.776884]
[1735838678278,8.91418208,207.75,207.69,23.776884]
[1735838680665,8.91418208,207.76,207.69,32.69106608]
[1735838680870,9.03967208,207.76,207.69,8.91418208]
[1735838681070,8.91418208,207.75,207.69,23.776884]
[1735838683581,8.91418208,207.74,207.68,23.776884]
[1735838683888,8.91418208,207.73,207.68,23.776884]
[1735838684087,8.91418208,207.73,207.66,8.91418208]
[1735838684587,8.91418208,207.74,207.68,23.776884]
[1735838685091,8.91418208,207.74,207.66,8.91418208]
[1735838685581,8.91418208,207.74,207.67,8.91418208]
[1735838685786,8.91418208,207.74,207.68,23.776884]
[1735838688386,0.12549,207.77,207.7,8.91418208]
[1735838688559,0.12549,207.77,207.72,23.776884]
[1735838689090,0.12549,207.77,207.72,8.91418208]
[1735838689757,1.5283,207.78,207.72,8.91418208]
[1735838691270,8.91418208,207.76,207.69,8.91418208]
[1735838691470,8.91418208,207.75,207.68,8.91418208]
[1735838691677,8.91418208,207.76,207.7,23.776884]
[1735838692294,8.91418208,207.75,207.68,8.91418208]
[1735838692962,8.91418208,207.75,207.69,23.776884]
[1735838695787,8.91418208,207.75,207.69,8.91418208]
[1735838695788,0.12549,207.75,207.69,8.91418208]
[1735838696009,8.91418208,207.77,207.69,8.91418208]
[1735838698596,8.91418208,207.77,207.71,23.776884]
[1735838699200,8.91418208,207.77,207.69,8.91418208]
[1735838699786,8.91418208,207.77,207.71,23.776884]
[1735838700610,8.91418208,207.76,207.69,8.91418208]
[1735838701107,0.12549,207.75,207.7,23.776884]
[1735838701279,8.91418208,207.74,207.7,23.776884]
[1735838701782,9.03967208,207.72,207.64,8.91418208]
[1735838702176,9.03967208,207.72,207.65,8.91418208]
[1735838702692,8.91418208,207.7,207.63,8.91418208]
[1735838702894,8.91418208,207.71,207.64,8.91418208]
[1735838703108,9.03967208,207.7,207.63,8.91418208]
[1735838703400,9.03967208,207.7,207.64,23.776884]
[1735838703609,8.91418208,207.67,207.6,8.91418208]
[1735838704312,8.91418208,207.66,207.59,8.91418208]
[1735838704813,0.12549,207.65,207.59,8.91418208]
[1735838705182,8.91418208,207.67,207.6,32.69106608]
[1735838705389,0.12549,207.66,207.6,8.91418208]
[1735838705807,0.25098,207.66,207.6,8.91418208]
[1735838706011,9.16516208,207.66,207.59,8.91418208]
[1735838706182,9.16516208,207.66,207.6,23.776884]
[1735838706387,8.91418208,207.65,207.6,23.776884]
[1735838707020,8.91418208,207.65,207.59,23.776884]
[1735838708718,9.16516208,207.66,207.59,8.91418208]
[1735838711022,0.25098,207.66,207.6,8.91418208]
[1735838711821,9.16516208,207.66,207.59,8.91418208]
[1735838713225,9.03967208,207.66,207.59,8.91418208]
[1735838715920,0.12549,207.64,207.59,23.776884]
[1735838716095,8.91418208,207.63,207.53,30.0]
[1735838716296,8.91418208,207.62,207.56,23.776884]
[1735838716805,8.91418208,207.63,207.56,8.91418208]
[1735838717831,8.91418208,207.64,207.57,8.91418208]
[1735838718513,8.91418208,207.62,207.54,23.776884]
[1735838718702,8.91418208,207.62,207.51,1.6482]
[1735838718703,8.91418208,207.62,207.55,8.91418208]
[1735838718902,8.91418208,207.62,207.56,23.776884]
[1735838719123,8.91418208,207.62,207.56,22.564884]
[1735838719627,8.91418208,207.62,207.54,8.91418208]
[1735838719849,10.41598208,207.62,207.54,8.91418208]
[1735838720554,10.41598208,207.62,207.51,2.37077265]
[1735838720721,9.03967208,207.61,207.54,8.91418208]
[1735838720923,10.41598208,207.62,207.55,8.91418208]
[1735838721224,10.41598208,207.62,207.5,66.37931915]
[1735838721225,1.5018,207.62,207.57,8.91418208]
[1735838721427,12.28948,207.67,207.59,32.69106608]
[1735838721428,13.85438,207.67,207.59,32.69106608]
[1735838721642,8.91418208,207.65,207.59,23.776884]
[1735838722850,0.12549,207.64,207.58,23.776884]
[1735838723652,8.91418208,207.64,207.58,23.776884]
[1735838724653,0.12549,207.63,207.58,23.776884]
[1735838724857,9.03967208,207.63,207.57,23.776884]
[1735838725567,0.12549,207.63,207.57,8.91418208]
[1735838725921,9.03967208,207.65,207.58,23.776884]
[1735838725922,0.12549,207.64,207.58,23.776884]
[1735838726950,0.12549,207.64,207.58,8.91418208]
[1735838727530,0.12549,207.63,207.58,23.776884]
[1735838730862,0.12549,207.63,207.57,23.776884]
[1735838731364,13.6034,207.67,207.58,8.91418208]
[1735838731565,1.5649,207.67,207.63,23.776884]
[1735838731934,6.5656,207.69,207.63,8.91418208]
[1735838732134,8.91418208,207.71,207.64,8.91418208]
[1735838732331,8.91418208,207.71,207.63,8.91418208]
[1735838732938,0.25098,207.7,207.63,8.91418208]
[1735838733350,0.25098,207.7,207.65,23.776884]
[1735838734158,0.25098,207.7,207.64,23.776884]
[1735838734965,0.12549,207.69,207.64,23.776884]
[1735838735371,20.0,207.7,207.64,8.91418208]
[1735838735562,10.56468208,207.72,207.65,8.91418208]
[1735838735773,15.00448208,207.74,207.68,23.776884]
[1735838735949,8.91418208,207.75,207.68,8.91418208]
[1735838737762,8.91418208,207.74,207.68,23.776884]
[1735838740684,8.91418208,207.73,207.67,23.776884]
[1735838741183,8.91418208,207.73,207.66,8.91418208]
[1735838741363,8.91418208,207.73,207.67,23.776884]
[1735838742052,8.91418208,207.74,207.67,23.776884]
[1735838742375,8.91418208,207.74,207.67,8.91418208]
[1735838742878,8.91418208,207.74,207.67,23.776884]
[1735838743386,8.91418208,207.74,207.67,8.91418208]
[1735838744171,8.91418208,207.75,207.69,23.776884]
[1735838746288,8.91418208,207.76,207.69,8.91418208]
[1735838747099,8.91418208,207.75,207.69,8.91418208]
[1735838747274,8.91418208,207.76,207.69,8.91418208]
[1735838747598,8.91418208,207.76,207.71,23.776884]
[1735838748257,10.54048208,207.77,207.71,23.776884]
[1735838748565,8.91418208,207.76,207.69,8.91418208]
[1735838749782,10.54048208,207.77,207.71,23.776884]
[1735838754480,9.16516208,207.76,207.69,8.91418208]
[1735838754680,8.91418208,207.74,207.67,8.91418208]
[1735838754889,8.91418208,207.75,207.69,23.776884]
[1735838755693,1.6263,207.77,207.71,32.69106608]
[1735838755892,10.54048208,207.77,207.71,32.69106608]
[1735838756385,1.6263,207.77,207.71,32.69106608]
[1735838756776,10.54048208,207.77,207.71,32.69106608]
[1735838757982,8.91418208,207.76,207.7,23.776884]
[1735838758187,1.6263,207.77,207.72,23.776884]
[1735838761575,10.54048208,207.77,207.7,8.91418208]
[1735838762402,1.6263,207.77,207.72,23.776884]
[1735838762699,1.6571,207.82,207.76,8.91418208]
[1735838763203,0.12549,207.81,207.75,8.91418208]
[1735838763402,21.6571,207.82,207.71,8.91418208]
[1735838763580,8.91418208,207.77,207.7,8.91418208]
[1735838763908,8.91418208,207.78,207.71,23.776884]
[1735838764582,8.91418208,207.77,207.72,23.776884]
[1735838765191,8.91418208,207.76,207.7,23.776884]
[1735838765507,8.91418208,207.76,207.64,30.72205842]
[1735838765508,8.91418208,207.74,207.67,8.91418208]
[1735838765692,8.91418208,207.73,207.66,8.91418208]
[1735838765897,8.91418208,207.73,207.67,23.776884]
[1735838766084,8.91418208,207.74,207.67,32.69106608]
[1735838766401,9.03967208,207.74,207.69,23.776884]
[1735838767008,9.03967208,207.74,207.67,23.776884]
[1735838767386,0.12549,207.74,207.65,32.69106608]
[1735838767712,8.91418208,207.72,207.65,32.69106608]
[1735838767904,9.03967208,207.74,207.67,32.69106608]
[1735838768083,0.12549,207.74,207.69,23.776884]
[1735838768989,10.56318208,207.75,207.69,23.776884]
[1735838769504,1.649,207.75,207.69,23.776884]
[1735838770806,8.91418208,207.73,207.67,20.0]